[Event "Mongolian Championship Women 2022"]
[Site "Chingis Khentii"]
[Date "2022.05.15"]
[Round "2.5"]
[White "Munkhzul, Davaakhuu"]
[Black "Tsetsenbileg, Munkhbayar"]
[Result "1-0"]
[ECO "B04"]
[WhiteElo "1991"]
[BlackElo "1830"]
[Annotator "TA"]
[PlyCount "79"]
[EventDate "2022.05.12"]
[EventType "tourn"]
[EventCountry "MGL"]
[SourceTitle "playchess.com"]
[Source "ChessBase"]
[SourceQuality "1"]
[TimeControl "40/5400+30:1800+30"]

{[%evp 24,79,0,8,39,26,9,31,125,111,165,175,264,273,382,374,412,406,405,396,500,485,509,436,484,404,441,426,512,499,591,596,582,589,577,579,687,709,733,664,713,705,697,687,637,635,660,617,707,684,661,612,720,593,591,531,29998,29999]} 1. e4 {[%emt 0:00:01][%cal Be2e4,Be4e5][%mdl 32]} Nf6 {[%emt 0:00:09]} 2. e5 {[%emt 0:00:23]} Nd5 {[%emt 0:00:02]} 3. d4 {[%emt 0:01:28]} d6 {[%emt 0:00:09]} 4. c4 {[%emt 0:00:33]} Nb6 {[%emt 0:00:12]} 5. Nf3 {[%emt 0:02:26]} Bg4 {[%emt 0:00:43]} 6. Be2 {[%emt 0:01:06]} g6 {[%emt 0:01:31]} 7. Nc3 {[%emt 0:10:05]} Bg7 {[%emt 0:02:17]} 8. exd6 {[%emt 0:06:54]} cxd6 {[%emt 0:00:19]} 9. Be3 {[%emt 0:02:39]} O-O {[%emt 0:00:48]} 10. O-O {[%emt 0:02:17]} Nc6 {[%emt 0:00:26]} 11. b3 {[%emt 0:01:59]} d5 {[%emt 0:00:56]} 12. c5 {[%emt 0:03:39]} Nc8 {[%emt 0:00:13]} 13. b4 {[%emt 0:07:07]} Nxb4 {[%emt 0:01:19] B04: Alekhine's Defence: 4 Nf3.} 14. Qb3 {[%emt 0:01:18]} (14. Rb1 $5 {[%cal Rb1b4]} Nc6 15. Rxb7 $16) 14... a5 {[%emt 0:42:57]} 15. a3 {[%emt 0:06:23] [#]} Na6 $146 {[%emt 0:03:47]} (15... Nc6 $14) ({Predecessor:} 15... Nc6 16. Qxb7 N8a7 17. Rfd1 Rb8 18. Qa6 Bxf3 19. Bxf3 e6 20. Na4 Rb3 21. Be2 Qc7 {0-1 (29) Petr,J (2183)-Richterova,N (2186) Czech Republic 2017}) 16. Qxb7 $16 {[%emt 0:01:56] White is much more active.} Ra7 {[%emt 0:00:08]} (16... Nc7 $16) 17. Qxd5 $18 {[%emt 0:02:37]} ({And not} 17. Bxa6 Rxb7 18. Bxb7 Bxf3 19. gxf3 e6 20. Bxc8 Qxc8 $17) 17... Rd7 {[%emt 0:09:04]} (17... Qxd5 $142 18. Nxd5 e6) 18. Qc4 {[%emt 0:03:00]} Bxf3 {[%emt 0:02:25]} 19. Bxf3 {[%emt 0:00:23]} Nb8 {[%emt 0:05:53]} 20. Rfd1 {[%emt 0:02:51]} e6 {[%emt 0:00:57]} 21. Nb5 {[%emt 0:07:25]} Qh4 {[%emt 0:03:19]} 22. Qc1 {[%emt 0:09:47] [#] And now Bg5 would win.} h6 {[%emt 0:01:15] Prevents Bg5.} 23. Bf4 {[%emt 0:02:01]} Na6 {[%emt 0:01:49]} 24. g3 {[%emt 0:00:58]} Qf6 {[%emt 0:00:09]} 25. Bc6 {[%emt 0:00:15] A strong pair of Bishops.} Re7 {[%emt 0:01:36][%cal Oe6e5]} 26. Bd6 {[%emt 0:01:30] Prevents e5.} Na7 {[%emt 0:02:14]} 27. Bxe7 {[%emt 0:00:58]} Qxe7 {[%emt 0:00:02]} 28. Nxa7 {[%emt 0:00:21]} Qxa7 {[%emt 0:00:02]} 29. Rb1 {[%emt 0:00:12]} Rb8 {[%emt 0:01:00]} 30. Qc4 {[%emt 0:00:31]} Nc7 {[%emt 0:00:29]} 31. Be4 {[%emt 0:00:19]} Bf8 {[%emt 0:00:47]} 32. Rxb8 Qxb8 {[%emt 0:00:01]} 33. Rb1 {[%emt 0:00:49]} Qd8 {[%emt 0:00:11]} 34. Rb7 {[%emt 0:01:05]} Bg7 {[%emt 0:00:48]} 35. c6 {[%emt 0:00:22]} Kh7 {[%emt 0:01:07]} 36. Kg2 {[%emt 0:00:53]} Bf8 {[%emt 0:00:43]} 37. Qc3 {[%emt 0:01:15]} a4 {[%emt 0:00:43]} 38. Qf3 {[%emt 0:01:08]} Kg7 {[%emt 0:06:41]} 39. Bc2 {[%emt 0:00:29]} Nd5 {[%emt 0:01:43]} 40. Qxf7+ {[%emt 0:00:00] Black did not feel at home in the position after the opening.  Weighted Error Value: White=0.16 (very precise) /Black=0.55} 1-0

[Event "Mongolian Championship Women 2022"]
[Site "Chingis Khentii"]
[Date "2022.05.15"]
[Round "2.6"]
[White "Amin-Erdene, Bayanmunkh"]
[Black "Munguntuul, Batkhuyag"]
[Result "1-0"]
[ECO "E01"]
[WhiteElo "1425"]
[BlackElo "2443"]
[Annotator "TA"]
[PlyCount "101"]
[EventDate "2022.05.12"]
[EventType "tourn"]
[EventCountry "MGL"]
[SourceTitle "playchess.com"]
[Source "ChessBase"]
[SourceQuality "1"]
[TimeControl "40/5400+30:1800+30"]

{[%evp 9,101,15,30,28,44,40,43,51,66,68,175,191,199,167,390,403,388,389,393,388,395,389,425,423,383,316,328,305,321,232,254,247,269,259,257,194,192,-164,95,96,347,333,350,363,439,450,406,418,370,427,432,402,409,397,393,386,728,385,12837,352,331,309,12833,467,12836,12836,12835,12836,12831,12831,12830,12830,12837,12838,12837,0,372,318,334,313,12843,12843,12844,12844,12843,12844,12844,12845,29985,29986,29986,29987,29991,29992]} 1. d4 {[%emt 0:00:03]} d5 {[%emt 0:00:03]} 2. c4 {[%emt 0:00:06]} e6 {[%emt 0:01:32]} 3. Nf3 {[%emt 0:00:15]} c6 {[%emt 0:00:30]} 4. g3 {[%emt 0:00:44]} Nf6 {[%emt 0:01:30]} 5. Bg2 {[%emt 0:00:30]} Bb4+ {[%emt 0:06:12]} 6. Nbd2 {[%emt 0:02:23] E01: Catalan: Early deviations.} Nbd7 {[%emt 0:04:44]} 7. O-O {[%emt 0:05:34]} O-O {[%emt 0:09:14]} 8. Qc2 {[%emt 0:02:14] White is slightly better.} b5 {[%emt 0:26:56] 8...b6 gains popularity.} 9. c5 {[%emt 0:11:24] [#]} e5 $146 {[%emt 0:16:16]} (9... a5 $14) ({Predecessor:} 9... Bxd2 10. Bxd2 Re8 11. Bf4 a5 12. Rac1 Ba6 13. Bd6 b4 14. Ne5 Nxe5 15. dxe5 Nd7 {½-½ (67) Yuffa,D (2577)-Yanchenko,R (2454) St Petersburg 2019}) 10. dxe5 $18 {[%emt 0:05:25]} Ng4 {[%emt 0:00:15]} 11. Nb3 {[%emt 0:00:56]} a5 $2 {[%emt 0:06:27]} (11... Ndxe5 12. Nxe5 Nxe5) 12. Ng5 {[%emt 0:07:58][%csl Gg5][%cal Rc2h7]} (12. a3 a4 $16) 12... g6 {[%emt 0:04:34]} 13. e6 $1 {[%emt 0:01:50]} (13. a3 a4 14. axb4 axb3 $14) 13... fxe6 {[%emt 0:06:01]} 14. Nxe6 {[%emt 0:01:05]} Qf6 {[%emt 0:00:01]} 15. Nxf8 Qxf8 {[%emt 0:00:02]} 16. h3 {[%emt 0:09:32]} Nge5 {[%emt 0:04:55]} 17. Be3 {[%emt 0:01:54] Threatens to win with a3.} a4 {[%emt 0:01:58]} 18. Nd4 {[%emt 0:01:03][%cal Od4c6] Nxc6! is the strong threat.} Bb7 {[%emt 0:02:20]} 19. b3 {[%emt 0:14:23] Prevents Nc4. And now a3 would win.} Nxc5 {[%emt 0:03:04]} 20. f4 {[%emt 0:00:33]} Ned7 {[%emt 0:01:29]} 21. f5 {[%emt 0:01:22]} Qe7 {[%emt 0:00:18]} 22. Bd2 {[%emt 0:07:37]} axb3 {[%emt 0:01:49]} 23. Qc1 {[%emt 0:14:45][%mdl 8192]} (23. axb3 $18 {was the only winning move.} Rxa1 24. Rxa1) 23... Bxd2 $2 {[%emt 0:00:53]} (23... Qe5 $19 24. e3 Ba3) 24. Qxd2 $16 {[%emt 0:00:02][%cal Od4c6] White now steadily converts the win.} bxa2 $2 {[%emt 0:00:05][%mdl 8192] [#]} (24... Rxa2 $16 {might work better.} 25. Rxa2 bxa2) 25. Nxc6 $1 $18 {[%emt 0:01:58][%mdl 576] Remove Defender} Bxc6 {[%emt 0:00:53]} (25... Qd6 26. Na5) 26. Bxd5+ {[%emt 0:00:02]} Bxd5 {[%emt 0:00:23]} 27. Qxd5+ {[%emt 0:00:02]} Kg7 {[%emt 0:00:01]} 28. Qxa8 {[%emt 0:02:26] Really sharp!} Qe3+ {[%emt 0:00:01]} 29. Kh2 {[%emt 0:03:01]} (29. Kh1 Ne4 $18) 29... Ne4 {[%emt 0:00:02]} 30. Rg1 {[%emt 0:00:39]} ({Not} 30. f6+ Ndxf6 31. Rg1 (31. Rxa2 Qxg3+ 32. Kh1 Qxh3+ 33. Kg1 Qg4+ 34. Kh2 Qg3+ 35. Kh1 Qh4+ 36. Kg2 Qg4+ 37. Kh2 Qh4+ 38. Kg2 Qg4+ 39. Kh2 $15) (31. Qb8 Qxe2+ 32. Kh1 b4 $11) 31... Nc3 32. Rxa2 Nxa2 $18) 30... Nc3 {[%emt 0:01:39]} (30... Qf2+ $2 31. Rg2 Qxf5 32. Rxa2 $18) 31. Rxa2 {[%emt 0:03:07]} Nxa2 32. Qxa2 {[%emt 0:00:01][%mdl 4096] Endgame KQR-KQN} Ne5 $2 {[%emt 0:01:49]} (32... Qf2+ 33. Rg2 Qxf5) 33. f6+ {[%emt 0:01:45]} Kh6 $2 {[%emt 0:00:32]} (33... Kxf6 34. Qa6+ Kg7 35. Qxb5 Qf2+ 36. Rg2 Qd4 37. Qb7+ Kg8 38. Qc8+ Kg7 39. Qb7+ Kg8) 34. f7 $2 {[%emt 0:00:48]} (34. Rf1 {White threatens f7 and mate.} Nd7 35. Rf3) 34... Qf2+ {[%emt 0:00:05]} 35. Rg2 {[%emt 0:00:01]} Qf5 {[%emt 0:00:34]} (35... Qxf7 36. Qxf7 Nxf7) 36. e4 {[%emt 0:01:27]} (36. Qa7 $142 Nxf7 37. Rf2 Qxf2+ 38. Qxf2) 36... Qf1 {[%emt 0:00:51]} (36... Qxf7 $142 37. Qxf7 Nxf7) 37. Rf2 {[%emt 0:00:58]} Nf3+ 38. Rxf3 {[%emt 0:00:00]} Qxf3 {[%emt 0:00:08] KQ-KQ} 39. e5 {[%emt 0:00:35][%cal Be4e5,Be5e6][%mdl 32]} Kg7 {[%emt 0:00:21]} 40. e6 {[%emt 0:00:00]} Qf6 {[%emt 0:00:00] Against Qb2} 41. Qe2 {[%emt 0:05:36] Threatening mate with e7.} Kf8 {[%emt 0:01:12]} 42. Qa2 $2 {[%emt 0:05:02]} (42. h4 {Hoping for Kg2.} h5 43. Kg2) 42... Kg7 $1 {[%emt 0:01:58] [#]} 43. Kg2 $1 {[%emt 0:11:05]} b4 {[%emt 0:06:06] Against Qa3} 44. Qb3 {[%emt 0:01:28]} Qd4 {[%emt 0:01:29]} (44... Qe5 45. g4 (45. Qxb4 Qe2+ 46. Kh1 Qf3+ 47. Kh2 Qf2+ 48. Kh1 Qf3+ 49. Kh2 Qf2+ 50. Kh1 Qf3+ $11) 45... Qc3) 45. f8=Q+ Kxf8 {[%emt 0:00:03]} 46. Qf3+ {[%emt 0:04:10]} Kg7 {[%emt 0:01:50]} 47. Qf7+ {[%emt 0:00:02]} Kh6 {[%emt 0:00:09]} 48. Qf8+ {[%emt 0:03:12]} Kh5 {[%emt 0:05:04]} 49. e7 {[%emt 0:00:49] White mates.} Qb2+ {[%emt 0:07:14] [#]} 50. Qf2 $1 {[%emt 0:00:25]} Qe5 {[%emt 0:00:09]} 51. Qf3+ {[%emt 0:00:14] Weighted Error Value: White=0.81/Black=0.69} 1-0

[Event "Mongolian Championship Women 2022"]
[Site "Chingis Khentii"]
[Date "2022.05.15"]
[Round "3.1"]
[White "Tsetsenbileg, Munkhbayar"]
[Black "Enkhtuul, Altan-Ulzii"]
[Result "0-1"]
[ECO "A57"]
[WhiteElo "1830"]
[BlackElo "2228"]
[Annotator "TA"]
[PlyCount "114"]
[EventDate "2022.05.12"]
[EventType "tourn"]
[EventCountry "MGL"]
[SourceTitle "playchess.com"]
[Source "ChessBase"]
[SourceQuality "1"]
[TimeControl "40/5400+30:1800+30"]

{[%evp 16,114,52,37,52,23,24,29,30,0,0,0,0,0,0,0,23,-13,-15,-16,-22,-88,-75,-58,-7,-20,-14,-26,-19,-38,-28,-79,-4,-1,-5,-47,-50,-50,-50,-50,-49,-50,-50,-99,-94,-120,-62,-62,-62,-62,-62,-62,-62,-95,-88,-245,-238,-306,-301,-293,-245,-235,-225,-293,-81,-75,-88,-195,-192,-184,-202,-424,-360,-532,-526,-622,-573,-786,-518,-599,-600,-2538,-2379,-29986,-29987,-29987,-29986,-29985,-29985,-29975,-29975,-6033,-5612,-5925,-5056,-29981,-29982,-29988,-29989,-29992,-29992]} 1. d4 {[%emt 0:00:58]} Nf6 {[%emt 0:00:17]} 2. c4 {[%emt 0:00:11]} c5 {[%emt 0:00:12]} 3. d5 {[%emt 0:00:33]} b5 {[%emt 0:00:12]} 4. Nf3 {[%emt 0:00:32]} bxc4 {[%emt 0:00:10]} 5. Nc3 {[%emt 0:05:54]} g6 {[%emt 0:01:36]} 6. e4 {[%emt 0:04:10]} d6 {[%emt 0:01:35]} 7. Bxc4 {[%emt 0:00:36]} Bg7 {[%emt 0:00:07]} 8. O-O {[%emt 0:00:46]} O-O {[%emt 0:00:24]} 9. h3 {[%emt 0:03:19]} Nfd7 {[%emt 0:00:20] [#] A57: Benko/Volga Gambit.} 10. Be3 $146 {[%emt 0:12:40]} ({Predecessor:} 10. Bg5 h6 11. Bh4 Ba6 12. Nd2 Ne5 13. Bxa6 Nxa6 14. Qe2 Nb4 15. f4 Nd7 16. Nf3 c4 17. e5 {0-1 (29) Kamsky,G (2665)-Xiong,J (2709) Chess.com INT 2021}) 10... Ba6 {[%emt 0:00:13]} 11. Be2 {[%emt 0:10:46]} Qb6 {[%emt 0:02:15] White has an edge.} 12. Qc2 {[%emt 0:01:36]} Bxe2 {[%emt 0:01:17]} 13. Qxe2 {[%emt 0:00:10]} Na6 {[%emt 0:00:50]} 14. Rac1 {[%emt 0:02:09]} Rab8 {[%emt 0:03:23][%cal Ob6b2]} 15. b3 {[%emt 0:01:11]} Nc7 {[%emt 0:02:34]} 16. Nd2 {[%emt 0:04:02]} Qa6 {[%emt 0:09:52]} 17. Nc4 {[%emt 0:03:27]} Nb6 {[%emt 0:00:31]} 18. Nxb6 {[%emt 0:05:16]} (18. Nd2 $11) 18... Qxe2 $1 $17 {[%emt 0:07:20]} 19. Nxe2 {[%emt 0:00:02]} Rxb6 {[%emt 0:00:33]} (19... axb6 $15 20. a4 f5) 20. Rfd1 {[%emt 0:05:29]} Rfb8 {[%emt 0:01:45]} 21. f4 {[%emt 0:01:13]} Na6 {[%emt 0:18:52][%cal Bc7a6,Ba6b4,Bb4a2][%mdl 32]} 22. Rc4 {[%emt 0:17:45]} Rb4 {[%emt 0:01:37]} 23. Rdc1 {[%emt 0:00:30] [#]} (23. Rxb4 $1 $11 Rxb4 24. e5) 23... Rxc4 {[%emt 0:27:56]} ({Better is} 23... Bb2 $1 $17 {[%cal Rb2c1]} 24. R1c2 Rxc4 25. bxc4 Bg7) 24. Rxc4 $11 {[%emt 0:00:02]} Nb4 {[%emt 0:00:42]} 25. Bd2 {[%emt 0:03:15]} (25. a3 $5 {[%cal Ra3b4]} Nd3 26. b4 $11) 25... Nxa2 {[%emt 0:03:17]} 26. Ra4 {[%emt 0:00:01][%csl LRa2,LRa7]} Nb4 {[%emt 0:00:13]} 27. Rxa7 {[%emt 0:00:08]} Bf8 {[%emt 0:01:33]} 28. Nc1 {[%emt 0:04:01] Against Nd3} f5 {[%emt 0:00:30]} 29. Bxb4 {[%emt 0:01:29]} (29. Ra4 $15) 29... Rxb4 $17 {[%emt 0:00:06]} 30. exf5 {[%emt 0:00:05]} gxf5 $15 {[%emt 0:00:13][%mdl 4096] Endgame KRB-KRN} (30... Rxf4 $17 31. fxg6 hxg6) 31. Ra4 $1 {[%emt 0:00:10]} Rb7 {[%emt 0:00:55]} 32. Kf2 {[%emt 0:00:25]} Bg7 {[%emt 0:00:14]} 33. Ra2 {[%emt 0:01:31] Against Bb2} Kf7 {[%emt 0:00:51]} 34. Ke3 {[%emt 0:01:22]} Rb4 {[%emt 0:01:53]} 35. Ra4 $2 {[%emt 0:00:35]} (35. Rd2 $17) 35... Bb2 $19 {[%emt 0:00:29]} 36. Ne2 {[%emt 0:05:28]} Rxb3+ {[%emt 0:00:12]} 37. Kd2 {[%emt 0:00:02]} Bf6 {[%emt 0:00:54]} 38. Kc2 {[%emt 0:01:19]} Rb7 {[%emt 0:01:21]} 39. g4 {[%emt 0:00:21]} e6 $2 {[%emt 0:06:47]} (39... Rb2+ $19 {has better winning chances.} 40. Kd1 Rb3) 40. g5 {[%emt 0:00:00]} Bg7 {[%emt 0:00:00]} ({Much weaker is} 40... exd5 41. gxf6 Kxf6 42. Ng3 $11) 41. Ng3 {[%emt 0:02:07]} (41. dxe6+ $17 Kxe6 42. h4) 41... exd5 {[%emt 0:05:21] Threatens to win with ...Ke6.} 42. Nxf5 {[%emt 0:00:11]} Ke6 {[%emt 0:00:31]} 43. Ne3 {[%emt 0:00:49] [#]} (43. Ng3) 43... Bd4 $1 {[%emt 0:02:15]} 44. Nf1 {[%emt 0:06:54]} (44. Ra3 {is a better defense.} Bxe3 45. Rxe3+ Kf5 46. Re8 Kxf4 47. Re6) 44... Kf5 {[%emt 0:04:43]} 45. Ra6 {[%emt 0:02:53]} Kxf4 {[%emt 0:01:28] ...Rb2+ is the strong threat.} 46. Rxd6 {[%emt 0:00:11]} Ke5 {[%emt 0:02:01]} 47. Rd8 {[%emt 0:01:20]} Rb2+ {[%emt 0:04:10]} 48. Kd1 {[%emt 0:00:07]} Ke4 {[%emt 0:00:36] ( -> ...Kd3)} 49. Ng3+ {[%emt 0:02:14]} Kd3 {[%emt 0:00:52][%cal Rb2b1]} 50. Kc1 {[%emt 0:00:02]} Ra2 {[%emt 0:00:50][%cal Ra2a1]} 51. Rb8 {[%emt 0:00:27]} Rg2 {[%emt 0:02:06]} 52. Nf1 {[%emt 0:03:56]} Rg1 {[%emt 0:00:10][%cal Rg1f1]} 53. Rf8 {[%emt 0:00:01]} Ke2 {[%emt 0:00:23]} 54. Kc2 {[%emt 0:00:21]} Rxf1 {[%emt 0:00:12]} 55. Re8+ {[%emt 0:00:20]} Be3 {[%emt 0:00:09] Black mates.} 56. Re5 {[%emt 0:00:08]} d4 {[%emt 0:00:07]} 57. Rxc5 {[%emt 0:00:12]} Rc1+ {[%emt 0:00:08] Weighted Error Value: White=0.85/Black=0.21 (precise)} 0-1

[Event "Mongolian Championship Women 2022"]
[Site "Chingis Khentii"]
[Date "2022.05.15"]
[Round "3.2"]
[White "Munkhzul, Turmunkh"]
[Black "Altantuya, Boldbaatar"]
[Result "0-1"]
[ECO "C03"]
[WhiteElo "2294"]
[BlackElo "2263"]
[Annotator "TA"]
[PlyCount "140"]
[EventDate "2022.05.12"]
[EventType "tourn"]
[EventCountry "MGL"]
[SourceTitle "playchess.com"]
[Source "ChessBase"]
[SourceQuality "1"]
[TimeControl "40/5400+30:1800+30"]

{[%evp 9,140,15,35,12,21,25,31,-11,21,9,23,0,7,7,0,0,0,0,0,0,0,0,-2,-10,0,-11,23,37,48,14,28,28,26,21,17,27,120,115,111,118,304,216,242,0,282,94,116,120,118,91,96,28,40,27,24,0,9,16,7,0,0,0,0,0,0,-300,-292,-330,-319,-489,-486,-690,-690,-1139,-690,-690,-690,-690,-690,-1034,-993,-988,-838,-983,-983,-983,-983,-975,-965,-946,-926,-880,-883,-1171,-979,-29968,-29968,-29968,-29969,-3037,-2243,-2157,-2157,-2028,-1555,-29958,-1416,-29974,-29975,-29984,-29979,-29970,-937,-29988,-29974,-29974,-29973,-29963,-3593,-2068,-1733,-6741,-6665,-4667,-4405,-29976,-29977,-29977,-29978,-29978,-29979,-7316,-5154]} 1. e4 {[%emt 0:02:12]} e6 {[%emt 0:00:08]} 2. d4 {[%emt 0:01:49]} d5 {[%emt 0:00:16]} 3. Nd2 {[%emt 0:02:19]} Be7 {[%emt 0:00:48]} 4. Bd3 {[%emt 0:04:52]} Nf6 {[%emt 0:00:28]} 5. Ngf3 {[%emt 0:01:57]} b6 {[%emt 0:02:05]} 6. c3 {[%emt 0:04:51] C03: French Tarrasch: Unusual Black 3rd moves.} c5 {[%emt 0:02:15]} 7. O-O {[%emt 0:04:04]} Bb7 {[%emt 0:03:05][%cal Rd5e4]} 8. exd5 {[%emt 0:05:31] White is slightly better.} Bxd5 {[%emt 0:01:53] [#]} 9. dxc5 $146 {[%emt 0:04:58]} ({Predecessor:} 9. Bb5+ Nbd7 10. c4 Bb7 11. dxc5 Bxc5 12. Nb3 O-O 13. Nxc5 Nxc5 14. b4 Qxd1 15. Rxd1 {1-0 (31) Sarkar,J (2365)-Bruned,B (2133) Chess.com INT 2021}) 9... Bxc5 {[%emt 0:01:02]} 10. Bb5+ {[%emt 0:02:40]} Bc6 {[%emt 0:02:11]} 11. Bxc6+ {[%emt 0:02:01]} Nxc6 {[%emt 0:00:08]} 12. Qa4 {[%emt 0:00:26]} Qd7 {[%emt 0:03:35]} 13. Nb3 {[%emt 0:02:27]} Be7 {[%emt 0:01:17]} 14. Bg5 {[%emt 0:03:44]} Ne5 {[%emt 0:03:41]} 15. Qf4 {[%emt 0:09:55]} Nxf3+ {[%emt 0:04:26]} 16. Qxf3 {[%emt 0:00:30]} Qd5 {[%emt 0:01:19]} 17. Qf4 {[%emt 0:19:15]} Nh5 {[%emt 0:10:26]} 18. Qa4+ {[%emt 0:00:59]} Qd7 {[%emt 0:23:56]} ({Much worse is} 18... b5 19. Qa6 $1 Bxg5 20. Rad1 $11) 19. Qh4 {[%emt 0:04:41] aiming for Rfd1.} Nf6 $1 {[%emt 0:00:40]} 20. Rad1 {[%emt 0:01:17]} Qb7 {[%emt 0:00:15]} 21. Bxf6 {[%emt 0:03:55]} Bxf6 {[%emt 0:08:26]} 22. Qb4 {[%emt 0:00:49] Black must now prevent Qb5+.} a6 {[%emt 0:00:58] [#] Prevents Qb5+.} (22... Rc8 $11) 23. Nc5 $1 $16 {[%emt 0:01:44][%cal Bb3c5,Bc5d7,Bd7e5][%mdl 544]} Qc6 {[%emt 0:08:21] [#]} 24. Nd7 $36 {[%emt 0:00:29][%mdl 2048] Strongly threatening Rd6. White has strong initiative.} Bd8 $2 {[%emt 0:04:54]} (24... Be7 $16 25. Qxb6 (25. Qd4 f6 $16) 25... Qxb6 26. Nxb6 Rb8) 25. Qg4 {[%emt 0:00:33]} Bf6 {[%emt 0:01:34]} 26. Qb4 {[%emt 0:03:14]} Bd8 $1 {[%emt 0:00:16]} 27. Rfe1 $2 {[%emt 0:03:45]} (27. Rd6 $18 {and White stays clearly on top.} Qb7 28. Nxb6) 27... Ra7 {[%emt 0:03:17]} 28. Ne5 {[%emt 0:00:21]} Qc5 {[%emt 0:01:52]} 29. Qf4 {[%emt 0:01:29][%cal Od1d8] And now Rxd8+! would win.} Qc8 {[%emt 0:05:09]} 30. Qa4+ {[%emt 0:01:36]} (30. Rd3 $16) 30... b5 $11 {[%emt 0:00:38]} 31. Qd4 {[%emt 0:00:23]} (31. Qe4 $5 {[%cal Re5c6]}) 31... Rc7 {[%emt 0:00:52]} 32. a4 {[%emt 0:04:15]} O-O {[%emt 0:00:39]} 33. axb5 {[%emt 0:01:15]} axb5 {[%emt 0:00:07]} 34. Nd7 {[%emt 0:00:12]} Re8 {[%emt 0:00:13]} 35. Nb6 {[%emt 0:00:06]} Qb8 {[%emt 0:00:21]} 36. Nd7 {[%emt 0:00:27] Inhibits Bf6.} Qc8 {[%emt 0:00:27]} 37. Re5 $2 {[%emt 0:00:22][%mdl 8192] [#]} (37. Re3 $11) 37... Be7 $1 $19 {[%emt 0:00:56] Hoping for ...Rd8.} 38. Nb6 {[%emt 0:03:25]} Qa6 {[%emt 0:00:08]} 39. Ree1 {[%emt 0:00:38]} (39. g3 {is a better defense.}) 39... Bc5 {[%emt 0:01:06]} 40. Qd8 {[%emt 0:00:00]} (40. Qf4 $142 Qxb6 41. g3) 40... Rxd8 {[%emt 0:00:00]} 41. Rxd8+ {[%emt 0:00:33]} Bf8 {[%emt 0:00:23]} 42. Nd7 {[%emt 0:03:36][%csl Gd7][%cal Rd8f8]} Rc8 {[%emt 0:00:21]} 43. Rxc8 {[%emt 0:00:29]} Qxc8 {[%emt 0:00:05]} 44. Ne5 {[%emt 0:00:02]} f6 {[%emt 0:01:14]} 45. Nf3 {[%emt 0:00:29]} Qd7 {[%emt 0:01:09] Threatens to win with ...Qd3.} 46. h3 {[%emt 0:01:02]} Bc5 {[%emt 0:00:19]} 47. Kf1 {[%emt 0:07:03]} Qd3+ {[%emt 0:00:10]} 48. Re2 {[%emt 0:00:06]} e5 {[%emt 0:01:23][%cal Be6e5,Be5e4][%mdl 32]} 49. Ne1 {[%emt 0:00:51]} Qb1 {[%emt 0:02:11]} 50. Rd2 {[%emt 0:00:07]} b4 {[%emt 0:00:58]} 51. Ke2 {[%emt 0:00:30]} e4 {[%emt 0:02:50]} 52. g3 {[%emt 0:01:46]} bxc3 {[%emt 0:02:32]} 53. bxc3 {[%emt 0:00:04]} Qb5+ {[%emt 0:00:25]} 54. Kd1 {[%emt 0:00:24]} Qb3+ {[%emt 0:00:05]} 55. Ke2 {[%emt 0:00:21]} Qxc3 {[%emt 0:00:13]} 56. Rc2 {[%emt 0:00:07]} Qd4 {[%emt 0:00:22]} 57. Kf1 {[%emt 0:00:07]} Bb4 {[%emt 0:00:07]} (57... e3 $142 58. fxe3 Qxe3 59. Rxc5 Qxc5 60. Ke2 Qg1 61. Nd3 Qxg3 62. Nf2 Kf7 63. Ne4 Qxh3 64. Nd6+ Ke6 65. Ne4 g5 66. Nf2 Qg2 67. Ke3 Qg3+ 68. Ke2 g4 69. Nd1 Qf3+ 70. Kd2 g3 71. Ne3 Qe4 72. Nd1 g2 73. Nb2 g1=Q 74. Nd3 Qge3+ 75. Kc3 Q3xd3+ 76. Kb2 Qg2+ 77. Kc1 Qdf1#) 58. Rc8+ {[%emt 0:00:19]} Kf7 {[%emt 0:00:01]} 59. Nc2 {[%emt 0:00:07]} Qd1+ {[%emt 0:00:50]} 60. Kg2 {[%emt 0:00:05]} Be1 {[%emt 0:00:50]} (60... Qf3+ $142 61. Kf1 Ba5 62. Rc6 e3 63. Nxe3 Qh1+ 64. Ke2 Qxc6 65. Kd3 Qf3 66. g4 Qxf2 67. Nf5 Qf1+ 68. Ke3 Qxh3+ 69. Kf2 Qxg4 70. Ng3 Bb6+ 71. Ke1 Qxg3+ 72. Kd2 Ba5+ 73. Ke2 h5 74. Kf1 f5 75. Ke2 Qf4 76. Kd3 Qe4#) 61. Kf1 {[%emt 0:00:34]} Bxf2+ {[%emt 0:00:11]} 62. Kxf2 {[%emt 0:00:06] KQ-KRN} Qf3+ {[%emt 0:00:06]} 63. Ke1 {[%emt 0:00:04]} Qxg3+ {[%emt 0:00:06]} (63... e3 $142 64. Rc7+ Ke8 65. Nxe3 Qxg3+ 66. Ke2 Qxc7 67. h4 Qh2+ 68. Kd3 Qxh4 69. Nc4 Qg3+ 70. Ke4 h5 71. Kd5 h4 72. Nd6+ Kd7 73. Nc4 h3 74. Nb6+ Ke8 75. Nc8 h2 76. Nd6+ Kf8 77. Ne4 h1=Q 78. Kd4 Qe5+ 79. Kc4 Qc1+ 80. Kb3 Qxe4 81. Ka2 Qe6#) 64. Kd2 {[%emt 0:00:20]} Qxh3 {[%emt 0:00:48]} 65. Rc7+ {[%emt 0:00:11]} Kg6 {[%emt 0:00:13] ( -> ...Qh2+)} 66. Rc3 {[%emt 0:00:08]} Qg2+ {[%emt 0:00:15]} 67. Ke1 {[%emt 0:00:03]} h5 {[%emt 0:00:17][%cal Bh7h5,Bh5h4][%mdl 32]} 68. Ne3 {[%emt 0:00:14]} Qg1+ {[%emt 0:00:33]} 69. Nf1 {[%emt 0:00:15]} h4 {[%emt 0:00:09]} 70. Ke2 {[%emt 0:00:02]} f5 {[%emt 0:00:23] Black used his chance.  Weighted Error Value: White=0.55/Black=0.18 (very precise)} 0-1